[Event "Bremer Silvester Open 2019"]
[Site "Bremen"]
[Date "2019.12.28"]
[Round "4.6"]
[White "Wachinger, David"]
[Black "Ditmas, Hugh"]
[Result "1-0"]
[ECO "E24"]
[WhiteElo "2105"]
[BlackElo "1982"]
[Annotator "NA"]
[PlyCount "59"]
[EventDate "2019.12.27"]
[EventType "swiss"]
[EventCountry "GER"]
[SourceTitle "playchess.com"]
[Source "ChessBase"]
[SourceQuality "1"]
[TimeControl "40/5400+30:1800+30"]

1. d4 {[%emt 0:00:00]} Nf6 {[%emt 0:00:00]} 2. c4 {[%emt 0:00:00]} e6 {[%emt 0:00:00]} 3. Nc3 {[%emt 0:00:00]} Bb4 {[%emt 0:00:00]} 4. f3 {[%emt 0:00:00]} d5 {[%emt 0:00:00]} 5. a3 {[%emt 0:00:24]} Bxc3+ {[%emt 0:00:22]} 6. bxc3 {[%emt 0:00:01]} O-O {[%emt 0:04:00]} 7. e3 {[%emt 0:01:27]} c5 {[%emt 0:05:13]} 8. cxd5 {[%emt 0:00:33]} Nxd5 {[%emt 0:09:16]} 9. Bd2 {[%emt 0:10:16]} f5 {[%emt 0:08:48]} 10. c4 {[%emt 0:09:17]} Nf6 {[%emt 0:00:33]} 11. Bc3 {[%emt 0:04:33]} Qc7 {[%emt 0:16:27]} 12. Nh3 {[%emt 0:08:23]} Rd8 {[%emt 0:01:59]} 13. Qb3 {[%emt 0:01:39]} Nc6 {[%emt 0:05:08]} 14. Rd1 {[%emt 0:01:43]} cxd4 {[%emt 0:02:50]} 15. exd4 {[%emt 0:01:12]} b6 {[%emt 0:00:26]} 16. Be2 {[%emt 0:10:03]} Bb7 {[%emt 0:05:02]} 17. O-O {[%emt 0:01:03]} Rac8 {[%emt 0:02:54]} 18. Rfe1 {[%emt 0:04:12]} Re8 {[%emt 0:04:00]} 19. Bf1 {[%emt 0:02:47]} Nd8 {[%emt 0:04:35]} 20. Ba1 {[%emt 0:08:56]} Ba6 {[%emt 0:05:17]} 21. Rc1 {[%emt 0:01:03]} Nc6 {[%emt 0:03:49]} 22. Bc3 {[%emt 0:04:49]} Nd7 {[%emt 0:08:26]} 23. Ng5 {[%emt 0:02:18]} Qf4 {[%emt 0:03:10]} 24. Nxe6 {[%emt 0:05:19]} Rxe6 {[%emt 0:00:23]} 25. c5 {[%emt 0:00:12]} Nxd4 {[%emt 0:00:56]} 26. Bxd4 {[%emt 0:00:33]} Qxd4+ {[%emt 0:00:05]} 27. Kh1 {[%emt 0:00:06]} Bxf1 {[%emt 0:05:57]} 28. Qxe6+ {[%emt 0:00:24]} Kf8 {[%emt 0:00:28]} 29. Rxf1 {[%emt 0:02:36]} Rxc5 {[%emt 0:02:23]} 30. Rcd1 {[%emt 0:00:26]} 1-0

[Event "Bremer Silvester Open 2019"]
[Site "Bremen"]
[Date "2019.12.29"]
[Round "5.1"]
[White "Reuker, Jari"]
[Black "Grishchenko, Sergey"]
[Result "1/2-1/2"]
[ECO "B16"]
[WhiteElo "2383"]
[BlackElo "2404"]
[Annotator "NA"]
[PlyCount "76"]
[EventDate "2019.12.27"]
[EventType "swiss"]
[EventCountry "GER"]
[SourceTitle "playchess.com"]
[Source "ChessBase"]
[SourceQuality "1"]
[TimeControl "40/5400+30:1800+30"]

1. e4 {[%emt 0:00:00]} c6 {[%emt 0:00:00]} 2. d4 {[%emt 0:00:00]} d5 {[%emt 0:00:00]} 3. Nd2 {[%emt 0:00:00]} dxe4 {[%emt 0:00:00]} 4. Nxe4 {[%emt 0:00:00]} Nf6 {[%emt 0:00:00]} 5. Nxf6+ {[%emt 0:00:01]} gxf6 {[%emt 0:00:00]} 6. Nf3 {[%emt 0:00:10]} Bf5 {[%emt 0:00:00]} 7. Bd3 {[%emt 0:00:09]} Nd7 {[%emt 0:00:11]} 8. O-O {[%emt 0:00:11]} Bg6 {[%emt 0:01:28] B16: Caro-Kann: Bronstein-Larsen Variation} 9. c3 {[%emt 0:00:13]} (9. Bf4 Bg7 10. Re1 O-O 11. Qe2 Re8 12. Bg3 e5 13. dxe5 Nxe5 14. Nxe5 fxe5 15. Bxg6 hxg6 16. Rad1 {0-1 (33) Zajic,M (2503)-Sedlak,N (2608) Valjevo 2018}) 9... Qc7 {[%emt 0:09:45]} 10. Re1 {[%emt 0:07:16]} e6 {[%emt 0:01:13]} 11. g3 {[%emt 0:04:20]} Bxd3 $146 {[%emt 0:16:20]} ({Predecessor:} 11... O-O-O 12. Bf1 Rg8 13. Qa4 Kb8 14. Nh4 Be7 15. Nxg6 Rxg6 {1-0 (27) Ammon,T (2132)-Eiber,M (2147) Bayern 2017}) 12. Qxd3 {[%emt 0:00:09]} O-O-O {[%emt 0:00:22]} 13. b4 {[%emt 0:03:06]} h5 {[%emt 0:20:23]} 14. Rb1 {[%emt 0:04:51]} Be7 {[%emt 0:34:46]} 15. Qe2 {[%emt 0:32:12]} Rdg8 {[%emt 0:02:11]} 16. Kh1 {[%emt 0:03:38]} f5 {[%emt 0:02:30]} 17. c4 {[%emt 0:10:23]} h4 {[%emt 0:00:21]} 18. Bf4 {[%emt 0:02:34]} Bd6 {[%emt 0:00:36]} 19. Bxd6 $11 {[%emt 0:05:11]} Qxd6 {[%emt 0:00:04]} 20. gxh4 {[%emt 0:00:50]} Nf6 {[%emt 0:00:22]} 21. Rg1 {[%emt 0:08:13]} Rg4 {[%emt 0:04:20]} 22. Rg3 {[%emt 0:07:51]} Re4 {[%emt 0:01:36]} 23. Qd2 {[%emt 0:03:08]} Nh5 {[%emt 0:01:20]} 24. Rgg1 {[%emt 0:00:43]} Nf4 {[%emt 0:00:53]} 25. Rbe1 {[%emt 0:00:35]} Ng6 {[%emt 0:00:24]} 26. Qg5 {[%emt 0:04:39]} Nxh4 {[%emt 0:00:55]} 27. Qg7 {[%emt 0:01:11]} Qf8 {[%emt 0:02:51]} 28. Qxf8+ {[%emt 0:01:06]} Rxf8 {[%emt 0:00:06]} 29. Rxe4 {[%emt 0:00:32]} Nxf3 {[%emt 0:00:03]} 30. Rf4 {[%emt 0:01:03]} Nxg1 {[%emt 0:00:15]} 31. Kxg1 {[%emt 0:00:01]} Rh8 {[%emt 0:00:23]} 32. Kg2 {[%emt 0:00:27]} Kd7 {[%emt 0:00:06]} 33. Rf3 {[%emt 0:00:50]} Rh4 {[%emt 0:00:16]} 34. Rd3 {[%emt 0:00:08]} Kd6 {[%emt 0:00:07]} 35. f3 {[%emt 0:00:43]} a6 {[%emt 0:01:59]} 36. Kg3 {[%emt 0:00:05]} Rh8 {[%emt 0:00:12]} 37. a4 {[%emt 0:01:15]} Rg8+ {[%emt 0:01:18]} 38. Kf2 {[%emt 0:00:01]} Rh8 {[%emt 0:00:14]} 1/2-1/2

[Event "Bremer Silvester Open 2019"]
[Site "Bremen"]
[Date "2019.12.29"]
[Round "5.2"]
[White "Wachinger, Nikolas"]
[Black "Brinkmann, Fabian"]
[Result "1-0"]
[ECO "A30"]
[WhiteElo "2234"]
[BlackElo "2148"]
[Annotator "NA"]
[PlyCount "61"]
[EventDate "2019.12.27"]
[EventType "swiss"]
[EventCountry "GER"]
[SourceTitle "playchess.com"]
[Source "ChessBase"]
[SourceQuality "1"]
[TimeControl "40/5400+30:1800+30"]

1. b3 {[%emt 0:00:00]} Nf6 {[%emt 0:03:23]} 2. Bb2 {[%emt 0:00:02]} g6 {[%emt 0:00:50]} 3. Nf3 {[%emt 0:01:30]} Bg7 {[%emt 0:00:08]} 4. e3 {[%emt 0:01:59]} O-O {[%emt 0:00:39]} 5. c4 {[%emt 0:00:57]} c5 {[%emt 0:01:04]} 6. Be2 {[%emt 0:00:32]} Nc6 {[%emt 0:01:53]} 7. O-O {[%emt 0:00:20]} b6 {[%emt 0:07:32]} 8. d4 {[%emt 0:04:23]} cxd4 {[%emt 0:00:53]} 9. Nxd4 {[%emt 0:06:44]} Nxd4 {[%emt 0:00:25] A30: Symmetrical English: Double Fianchetto and Hedgehog} 10. Qxd4 {[%emt 0:03:35]} (10. Bxd4 Bb7 11. Bf3 Bxf3 12. Qxf3 d5 13. cxd5 Qxd5 14. Nc3 Qxf3 15. gxf3 Rfd8 16. Rfd1 Ne8 17. Bxg7 Kxg7 {½-½ (30) Wen,Y (2613)-Wei,Y (2727) Xinghua 2017}) 10... Bb7 {[%emt 0:01:47]} 11. Rd1 {[%emt 0:00:55]} Rc8 $146 {[%emt 0:12:26]} ({Predecessor:} 11... Qc8 12. Nc3 d6 13. Nd5 Bxd5 14. cxd5 Ne8 15. Qd2 Bxb2 16. Qxb2 Nf6 17. Rac1 {½-½ (34) Gonzalez Garcia,J (2508)-Garriga Cazorla,P (2374) Sabadell 2016}) 12. a4 {[%emt 0:05:36]} a5 {[%emt 0:06:25]} 13. Na3 {[%emt 0:01:49]} Ne8 {[%emt 0:12:47]} 14. Qd2 {[%emt 0:02:50]} Bxb2 {[%emt 0:00:40]} 15. Qxb2 {[%emt 0:00:04]} Nc7 {[%emt 0:00:30]} 16. Nb5 {[%emt 0:17:08]} (16. Qd4 $5 {[%cal Rd4b6]}) 16... Na6 {[%emt 0:04:33]} 17. Bf3 {[%emt 0:03:13]} Bxf3 {[%emt 0:06:44]} 18. gxf3 {[%emt 0:00:40]} Rc5 {[%emt 0:00:57]} 19. Nc3 {[%emt 0:04:03]} Nb4 {[%emt 0:02:41]} 20. Ne4 {[%emt 0:01:53]} Rf5 {[%emt 0:00:23]} 21. f4 {[%emt 0:00:50]} Qc7 {[%emt 0:04:22]} 22. Rd2 {[%emt 0:03:54]} d6 {[%emt 0:09:09]} 23. Rad1 {[%emt 0:00:57]} Qc8 {[%emt 0:02:38]} 24. Ng3 {[%emt 0:10:29]} Rc5 {[%emt 0:00:16]} 25. Rd4 $11 {[%emt 0:06:36]} Qg4 {[%emt 0:03:40]} 26. f5 {[%emt 0:06:24]} Qf3 {[%emt 0:01:28]} 27. R1d2 {[%emt 0:00:31]} g5 {[%emt 0:01:52]} 28. Re4 {[%emt 0:03:06]} h5 {[%emt 0:05:11]} 29. h4 {[%emt 0:01:18]} Nc6 {[%emt 0:01:39]} 30. hxg5 {[%emt 0:01:19]} Re5 {[%emt 0:00:44]} 31. Rf4 {[%emt 0:00:26]} 1-0

[Event "Bremer Silvester Open 2019"]
[Site "Bremen"]
[Date "2019.12.29"]
[Round "5.3"]
[White "Wielebinski, Paul Martin"]
[Black "Hoerstmann, Martin"]
[Result "0-1"]
[ECO "B06"]
[WhiteElo "2069"]
[BlackElo "2208"]
[Annotator "NA"]
[PlyCount "122"]
[EventDate "2019.12.27"]
[EventType "swiss"]
[EventCountry "GER"]
[SourceTitle "playchess.com"]
[Source "ChessBase"]
[SourceQuality "1"]
[TimeControl "40/5400+30:1800+30"]

1. e4 {[%emt 0:00:00]} g6 {[%emt 0:05:22]} 2. d4 {[%emt 0:00:00]} Bg7 {[%emt 0:00:05]} 3. Nf3 {[%emt 0:00:00]} d6 {[%emt 0:00:14]} 4. Bc4 {[%emt 0:00:07]} Nf6 {[%emt 0:00:28]} 5. Qe2 {[%emt 0:00:13]} O-O {[%emt 0:00:24]} 6. h3 {[%emt 0:00:21]} Nc6 {[%emt 0:02:08]} 7. e5 {[%emt 0:02:37]} dxe5 {[%emt 0:02:26]} 8. dxe5 {[%emt 0:00:04]} Nd5 {[%emt 0:00:05]} 9. O-O {[%emt 0:01:42]} Be6 {[%emt 0:02:37]} 10. Rd1 {[%emt 0:05:05]} Nf4 {[%emt 0:01:14]} 11. Qe1 {[%emt 0:03:30]} Qc8 {[%emt 0:03:36]} 12. Bf1 {[%emt 0:01:18]} Nd5 {[%emt 0:01:37]} 13. c3 {[%emt 0:06:23]} a6 {[%emt 0:14:06]} 14. Na3 {[%emt 0:02:42]} Rd8 $11 {[%emt 0:05:55]} 15. Nc2 {[%emt 0:01:30]} Nb6 {[%emt 0:08:44]} 16. Bf4 {[%emt 0:07:45]} Rxd1 {[%emt 0:02:04]} 17. Qxd1 {[%emt 0:01:44]} Qe8 {[%emt 0:09:38]} 18. Ne3 {[%emt 0:07:36]} Rd8 {[%emt 0:01:41]} 19. Qc2 {[%emt 0:00:13]} Nd5 {[%emt 0:00:48]} 20. Qe4 {[%emt 0:03:34]} Nxe3 {[%emt 0:07:56]} 21. Qxe3 {[%emt 0:06:02]} Bd5 {[%emt 0:01:07]} 22. Nd4 {[%emt 0:01:52]} Nxd4 {[%emt 0:01:38]} 23. cxd4 {[%emt 0:00:08]} Qd7 {[%emt 0:01:12]} 24. Qc3 {[%emt 0:01:38]} c6 {[%emt 0:01:18]} 25. a4 {[%emt 0:00:25]} f5 {[%emt 0:03:40]} 26. b4 {[%emt 0:01:24]} h6 {[%emt 0:00:46]} 27. Be3 {[%emt 0:00:52]} e6 {[%emt 0:01:05]} 28. f4 {[%emt 0:01:29]} Bf8 {[%emt 0:00:15]} 29. Rb1 {[%emt 0:00:51]} Be7 {[%emt 0:05:46]} 30. Rb2 {[%emt 0:01:15]} Kf7 {[%emt 0:03:42]} 31. b5 {[%emt 0:02:54]} cxb5 {[%emt 0:13:53]} 32. axb5 {[%emt 0:00:09]} Rc8 {[%emt 0:00:00]} 33. Qa5 {[%emt 0:00:43]} axb5 {[%emt 0:00:00]} 34. Bxb5 {[%emt 0:00:52]} Qc7 {[%emt 0:00:00]} 35. Qxc7 {[%emt 0:08:49]} Rxc7 {[%emt 0:00:00]} 36. Bf1 {[%emt 0:04:27]} Ke8 {[%emt 0:00:00]} 37. Bd2 {[%emt 0:03:12]} g5 {[%emt 0:00:00]} 38. fxg5 {[%emt 0:01:52]} hxg5 {[%emt 0:00:00]} 39. Bb4 {[%emt 0:00:31]} Bxb4 {[%emt 0:00:00]} 40. Rxb4 {[%emt 0:00:06]} Rc2 {[%emt 0:00:00]} 41. g3 {[%emt 0:37:32]} Kf7 {[%emt 0:29:53]} 42. Ra4 {[%emt 0:03:12]} Rd2 {[%emt 0:00:20]} 43. h4 {[%emt 0:02:05]} g4 {[%emt 0:00:00]} 44. Rb4 {[%emt 0:00:00]} Kg6 {[%emt 0:00:00]} 45. Ra4 {[%emt 0:00:00]} Kh6 {[%emt 0:00:00]} 46. Rb4 {[%emt 0:00:00]} Kh5 {[%emt 0:00:00]} 47. Ra4 {[%emt 0:00:00]} f4 {[%emt 0:00:00]} 48. gxf4 {[%emt 0:00:00]} Kxh4 {[%emt 0:00:00]} 49. f5 {[%emt 0:00:00]} exf5 {[%emt 0:00:00]} 50. Ra8 {[%emt 0:00:00]} Kg3 {[%emt 0:00:00]} 51. Rd8 {[%emt 0:00:00]} Bf3 {[%emt 0:00:00]} 52. Rh8 {[%emt 0:00:00]} Rxd4 {[%emt 0:00:00]} 53. e6 {[%emt 0:00:00]} Rd1 {[%emt 0:00:00]} 54. Rf8 {[%emt 0:00:00]} Re1 {[%emt 0:00:00]} 55. Rf6 {[%emt 0:00:00]} f4 {[%emt 0:00:26]} 56. e7 {[%emt 0:00:00]} Rxe7 {[%emt 0:00:19]} 57. Rh6 {[%emt 0:00:00]} Re5 {[%emt 0:00:40]} 58. Bc4 {[%emt 0:00:00]} Bc6 {[%emt 0:01:35]} 59. Bf1 {[%emt 0:00:00]} f3 {[%emt 0:00:54]} 60. Rh2 {[%emt 0:00:00]} Rh5 {[%emt 0:00:24]} 61. Rh3+ {[%emt 0:00:00]} Rxh3 {[%emt 0:01:14]} 0-1

[Event "Bremer Silvester Open 2019"]
[Site "Bremen"]
[Date "2019.12.29"]
[Round "5.4"]
[White "Celik, Abdullah"]
[Black "Wachinger, David"]
[Result "1/2-1/2"]
[ECO "E05"]
[WhiteElo "2048"]
[BlackElo "2105"]
[Annotator "NA"]
[PlyCount "85"]
[EventDate "2019.12.27"]
[EventType "swiss"]
[EventCountry "GER"]
[SourceTitle "playchess.com"]
[Source "ChessBase"]
[SourceQuality "1"]
[TimeControl "40/5400+30:1800+30"]

1. d4 {[%emt 0:00:00]} Nf6 {[%emt 0:00:00]} 2. c4 {[%emt 0:00:00]} e6 {[%emt 0:00:00]} 3. g3 {[%emt 0:00:00]} d5 {[%emt 0:03:16]} 4. Nf3 {[%emt 0:00:00]} Be7 {[%emt 0:00:15]} 5. Bg2 {[%emt 0:00:00]} O-O {[%emt 0:00:12]} 6. O-O {[%emt 0:00:00]} dxc4 {[%emt 0:00:12]} 7. Qc2 {[%emt 0:00:11]} a6 {[%emt 0:00:19]} 8. a4 {[%emt 0:00:38]} Bd7 {[%emt 0:03:10]} 9. Qxc4 {[%emt 0:01:54]} Bc6 {[%emt 0:00:29]} 10. Qd3 {[%emt 0:05:28]} Be4 {[%emt 0:01:30]} 11. Qd1 {[%emt 0:00:13]} c5 {[%emt 0:13:30]} 12. Nc3 {[%emt 0:00:23]} Bxf3 {[%emt 0:05:13]} 13. Bxf3 {[%emt 0:00:20]} cxd4 {[%emt 0:00:06]} 14. Ne4 {[%emt 0:05:01]} Nc6 {[%emt 0:04:30]} 15. Qb3 {[%emt 0:03:52]} Qc7 {[%emt 0:13:24]} 16. Bd2 {[%emt 0:02:38]} Nxe4 {[%emt 0:19:12]} 17. Bxe4 {[%emt 0:00:04]} a5 {[%emt 0:01:04]} 18. Rac1 $11 {[%emt 0:01:00]} Ra6 {[%emt 0:07:28]} 19. Qb5 {[%emt 0:01:41]} Rb6 {[%emt 0:01:29]} 20. Qxa5 {[%emt 0:01:00]} Nxa5 {[%emt 0:13:45]} 21. Rxc7 {[%emt 0:00:05]} Bb4 {[%emt 0:00:30]} 22. Bf4 {[%emt 0:04:36]} f6 {[%emt 0:00:35]} 23. Rfc1 {[%emt 0:15:29]} e5 {[%emt 0:02:55]} 24. Bd5+ {[%emt 0:00:03]} Kh8 {[%emt 0:00:02]} 25. Rc8 {[%emt 0:03:06]} Nc6 {[%emt 0:00:27]} 26. Rxf8+ {[%emt 0:02:13]} Bxf8 {[%emt 0:00:01]} 27. Bd2 {[%emt 0:04:17]} Rxb2 {[%emt 0:00:02]} 28. Be1 {[%emt 0:03:12]} g6 {[%emt 0:01:52]} 29. Kf1 {[%emt 0:01:52]} Kg7 {[%emt 0:00:30]} 30. a5 {[%emt 0:03:58]} Rb5 {[%emt 0:02:56]} 31. Bxc6 {[%emt 0:07:11]} bxc6 {[%emt 0:00:40]} 32. a6 {[%emt 0:00:08]} Rb6 {[%emt 0:01:36]} 33. Ra1 {[%emt 0:01:04]} Rb8 {[%emt 0:00:04]} 34. Ba5 {[%emt 0:02:44]} Bc5 {[%emt 0:00:33]} 35. Rc1 {[%emt 0:02:31]} Rb5 {[%emt 0:02:55]} 36. Bc7 {[%emt 0:00:35]} Kh6 {[%emt 0:01:48]} 37. Kg2 {[%emt 0:00:31]} Bb6 {[%emt 0:00:21]} 38. Bb8 {[%emt 0:07:59]} c5 {[%emt 0:01:24]} 39. Ra1 {[%emt 0:00:15]} c4 {[%emt 0:00:19]} 40. a7 {[%emt 0:00:48]} Bxa7 {[%emt 0:00:22]} 41. Bxa7 {[%emt 0:30:04]} c3 {[%emt 0:04:50]} 42. Rc1 {[%emt 0:00:00]} Kg7 {[%emt 0:04:07]} 43. Kf1 {[%emt 0:00:00]} 1/2-1/2

[Event "Bremer Silvester Open 2019"]
[Site "Bremen"]
[Date "2019.12.29"]
[Round "5.5"]
[White "Villwock, Martin"]
[Black "Erofeev, Anastasia"]
[Result "1-0"]
[ECO "C80"]
[WhiteElo "2108"]
[BlackElo "1988"]
[Annotator "NA"]
[PlyCount "69"]
[EventDate "2019.12.27"]
[EventType "swiss"]
[EventCountry "GER"]
[SourceTitle "playchess.com"]
[Source "ChessBase"]
[SourceQuality "1"]
[TimeControl "40/5400+30:1800+30"]

1. e4 {[%emt 0:00:00]} e5 {[%emt 0:00:00]} 2. Nf3 {[%emt 0:00:00]} Nc6 {[%emt 0:00:04]} 3. Bb5 {[%emt 0:00:16]} a6 {[%emt 0:00:10]} 4. Ba4 {[%emt 0:00:08]} Nf6 {[%emt 0:00:10]} 5. O-O {[%emt 0:00:36]} Nxe4 {[%emt 0:00:21]} 6. d4 {[%emt 0:00:44]} b5 {[%emt 0:00:09]} 7. Bb3 {[%emt 0:00:09]} d5 {[%emt 0:00:08]} 8. dxe5 {[%emt 0:00:19]} Be6 {[%emt 0:00:08]} 9. Nbd2 {[%emt 0:01:07]} Nc5 {[%emt 0:03:12]} 10. c3 {[%emt 0:00:48]} g6 {[%emt 0:11:34]} 11. Nd4 {[%emt 0:06:14] C80: Open Ruy Lopez: Sidelines and 9 Nbd2} Ne7 $146 {[%emt 0:08:03]} ({Predecessor:} 11... Nxe5 12. Qe2 Bg7 13. f4 Ned3 14. f5 gxf5 15. Nxf5 Rg8 16. Bc2 Qg5 17. Nxg7+ Rxg7 18. Nf3 Nxc1 19. Raxc1 {0-1 (71) Azarov,S (2667)-Sulskis,S (2595) Jurmala 2012}) 12. Bc2 {[%emt 0:04:02]} Bg7 {[%emt 0:03:19]} 13. f4 {[%emt 0:00:32]} Qc8 {[%emt 0:03:25]} 14. f5 {[%emt 0:09:19]} gxf5 {[%emt 0:04:26]} 15. N2f3 {[%emt 0:02:09]} Ne4 {[%emt 0:12:21]} 16. Nh4 {[%emt 0:05:22]} c6 {[%emt 0:07:21]} 17. Qh5 {[%emt 0:01:50]} Bxe5 {[%emt 0:04:44]} 18. Nhxf5 {[%emt 0:04:33]} Ng6 {[%emt 0:04:21]} (18... Nxf5 $16 {was worth a try.} 19. Nxe6 Qxe6 20. Rxf5 Nf6) 19. Bh6 {[%emt 0:04:16]} Rg8 {[%emt 0:06:17]} 20. Rae1 {[%emt 0:08:01]} Qc7 {[%emt 0:06:42]} 21. Nxe6 {[%emt 0:05:30]} fxe6 {[%emt 0:00:08]} 22. Nd4 {[%emt 0:01:43]} Bxd4+ {[%emt 0:08:48]} 23. cxd4 {[%emt 0:00:05]} O-O-O {[%emt 0:00:30]} 24. Bxe4 {[%emt 0:01:51]} dxe4 {[%emt 0:00:07]} 25. Qg4 {[%emt 0:00:38]} Kb7 {[%emt 0:05:31]} 26. Qxe4 {[%emt 0:01:05]} Rge8 {[%emt 0:02:00]} 27. Rc1 {[%emt 0:03:01]} Rd5 {[%emt 0:02:26]} 28. Be3 {[%emt 0:01:30]} Re7 $11 {[%emt 0:02:12]} 29. a4 {[%emt 0:01:22]} Rh5 {[%emt 0:01:20]} 30. g3 {[%emt 0:00:46]} e5 {[%emt 0:01:03]} 31. d5 {[%emt 0:00:34]} Qc8 {[%emt 0:01:12]} 32. Rxc6 {[%emt 0:02:04]} Qh3 {[%emt 0:00:44]} 33. Qc2 {[%emt 0:00:49]} Rg7 {[%emt 0:01:17]} 34. Rb6+ {[%emt 0:00:09]} Ka8 {[%emt 0:01:23]} 35. Qc6+ {[%emt 0:00:13]} 1-0

[Event "Bremer Silvester Open 2019"]
[Site "Bremen"]
[Date "2019.12.29"]
[Round "5.6"]
[White "Riewe, Gerhard"]
[Black "Meyer, Thorsten"]
[Result "1-0"]
[ECO "B25"]
[WhiteElo "2101"]
[BlackElo "2295"]
[Annotator "NA"]
[PlyCount "59"]
[EventDate "2019.12.27"]
[EventType "swiss"]
[EventCountry "GER"]
[SourceTitle "playchess.com"]
[Source "ChessBase"]
[SourceQuality "1"]
[TimeControl "40/5400+30:1800+30"]

1. e4 {[%emt 0:00:00]} d6 {[%emt 0:00:00]} 2. Nc3 {[%emt 0:00:57]} Nf6 {[%emt 0:01:34]} 3. g3 {[%emt 0:01:17]} g6 {[%emt 0:00:18]} 4. Bg2 {[%emt 0:00:11]} Bg7 {[%emt 0:00:09]} 5. f4 {[%emt 0:00:11]} c5 {[%emt 0:05:01]} 6. Nf3 {[%emt 0:01:07]} Nc6 {[%emt 0:01:38]} 7. O-O {[%emt 0:02:07]} O-O {[%emt 0:10:21]} 8. d3 {[%emt 0:01:06]} Rb8 {[%emt 0:03:34]} 9. Qe2 {[%emt 0:12:37] B25: Closed Sicilian: 3 g3, lines without early Be3} (9. h3 b5 10. g4 b4 11. Ne2 a5 12. f5 c4 13. Be3 Ba6 14. Qd2 Ne5 15. Nxe5 dxe5 16. dxc4 Bxc4 17. Qxd8 Rfxd8 18. Rf2 Ne8 19. Ng3 Nd6 {½-½ (78) Amin,B (2663)-Can,E (2578) Dubai 2017}) 9... b5 {[%emt 0:11:27]} 10. Bd2 {[%emt 0:05:53]} b4 {[%emt 0:18:05]} 11. Nd1 {[%emt 0:02:13]} a5 $146 {[%emt 0:03:31]} ({Predecessor:} 11... Ba6 12. a3 Qc8 13. Kh1 c4 14. axb4 cxd3 15. cxd3 Nxb4 16. Nf2 {0-1 (64) Bayrak,A (1932)-Zinchenko,Y (2322) Denizli 2003}) 12. c3 {[%emt 0:04:48]} Qb6 {[%emt 0:04:47]} 13. Kh1 {[%emt 0:02:51]} e6 {[%emt 0:01:46]} 14. Ne3 {[%emt 0:01:26]} Ba6 {[%emt 0:01:04]} 15. Rad1 {[%emt 0:05:00] [#]} Nxe4 $1 {[%emt 0:01:36]} 16. Nc4 {[%emt 0:00:26]} Bxc4 $1 {[%emt 0:02:38]} 17. dxc4 {[%emt 0:01:33]} Nxd2 {[%emt 0:02:00]} 18. Rxd2 {[%emt 0:00:36]} bxc3 {[%emt 0:02:26]} 19. bxc3 {[%emt 0:02:11]} Qc7 {[%emt 0:01:19]} 20. Rfd1 {[%emt 0:02:50]} Rfd8 {[%emt 0:00:38]} 21. Rd3 {[%emt 0:01:52]} Ne7 {[%emt 0:04:51]} 22. Ng5 {[%emt 0:01:57]} e5 {[%emt 0:03:10]} 23. Qf2 {[%emt 0:04:17]} exf4 {[%emt 0:02:43]} 24. Qxf4 {[%emt 0:01:02]} Nf5 {[%emt 0:00:38]} 25. Bd5 {[%emt 0:05:11]} Rf8 {[%emt 0:01:26]} 26. g4 {[%emt 0:04:44]} Be5 {[%emt 0:01:57]} 27. Qf2 {[%emt 0:01:49]} Ng7 {[%emt 0:03:37]} 28. Rf3 $18 {[%emt 0:03:25]} Ne8 {[%emt 0:03:58]} 29. Bxf7+ {[%emt 0:09:33]} Kh8 {[%emt 0:00:18]} 30. Qh4 {[%emt 0:20:45] Kg8} 1-0

[Event "Bremer Silvester Open 2019"]
[Site "Bremen"]
[Date "2019.12.29"]
[Round "6.1"]
[White "Grishchenko, Sergey"]
[Black "Wachinger, Nikolas"]
[Result "1/2-1/2"]
[ECO "E54"]
[WhiteElo "2404"]
[BlackElo "2234"]
[Annotator "NA"]
[PlyCount "120"]
[EventDate "2019.12.27"]
[EventType "swiss"]
[EventCountry "GER"]
[SourceTitle "playchess.com"]
[Source "ChessBase"]
[SourceQuality "1"]
[TimeControl "40/5400+30:1800+30"]

1. d4 {[%emt 0:00:48]} Nf6 {[%emt 0:00:00]} 2. c4 {[%emt 0:00:08]} e6 {[%emt 0:00:00]} 3. Nc3 {[%emt 0:00:13]} Bb4 {[%emt 0:00:00]} 4. e3 {[%emt 0:00:18]} O-O {[%emt 0:00:02]} 5. Bd3 {[%emt 0:02:30]} c5 {[%emt 0:00:16]} 6. Nf3 {[%emt 0:06:10]} d5 {[%emt 0:00:10]} 7. O-O {[%emt 0:00:14]} dxc4 {[%emt 0:00:10]} 8. Bxc4 {[%emt 0:00:05]} cxd4 {[%emt 0:00:07]} 9. exd4 {[%emt 0:00:09]} b6 {[%emt 0:00:06]} 10. Qe2 {[%emt 0:11:05]} Bb7 {[%emt 0:02:34]} 11. a3 {[%emt 0:09:59]} Be7 {[%emt 0:03:30]} 12. Bg5 {[%emt 0:19:34]} Nbd7 {[%emt 0:11:04]} 13. Rfe1 {[%emt 0:10:49]} Rc8 {[%emt 0:02:02]} 14. Bb3 {[%emt 0:06:53]} Re8 {[%emt 0:08:55]} 15. Ne5 {[%emt 0:07:26]} Nxe5 {[%emt 0:04:37]} 16. dxe5 {[%emt 0:01:54]} Nd5 {[%emt 0:00:23]} 17. Bxe7 {[%emt 0:02:32]} Nxc3 {[%emt 0:04:34]} 18. Bxd8 {[%emt 0:00:22]} Nxe2+ {[%emt 0:00:07]} 19. Rxe2 {[%emt 0:00:02]} Rexd8 {[%emt 0:00:24]} 20. Rc2 {[%emt 0:02:12]} Rxc2 {[%emt 0:00:51]} 21. Bxc2 {[%emt 0:00:04]} g5 {[%emt 0:00:45]} 22. Rd1 {[%emt 0:00:20]} Rc8 {[%emt 0:02:26]} 23. Bd3 {[%emt 0:01:42]} Rc5 {[%emt 0:02:37]} 24. Re1 {[%emt 0:01:05]} Kg7 {[%emt 0:07:46]} 25. f3 {[%emt 0:01:38]} Rd5 {[%emt 0:00:49]} 26. Re3 {[%emt 0:00:14]} Rd4 {[%emt 0:00:23]} 27. Kf2 {[%emt 0:00:24]} h5 {[%emt 0:00:21]} 28. h3 {[%emt 0:06:32]} Bd5 {[%emt 0:01:31]} 29. Ke1 {[%emt 0:01:22]} Bc4 {[%emt 0:09:47]} 30. Bc2 {[%emt 0:01:14]} Rd5 {[%emt 0:05:05]} 31. g3 {[%emt 0:02:25]} h4 {[%emt 0:01:17]} 32. gxh4 {[%emt 0:00:11]} gxh4 {[%emt 0:00:02]} 33. Re4 {[%emt 0:01:00]} Bd3 {[%emt 0:00:28]} 34. Bxd3 {[%emt 0:01:11]} Rxd3 {[%emt 0:00:02]} 35. Ke2 {[%emt 0:00:28]} Rd5 {[%emt 0:07:21]} 36. Rg4+ {[%emt 0:01:26]} Kf8 {[%emt 0:00:20]} 37. f4 {[%emt 0:00:36]} Rb5 {[%emt 0:00:08]} 38. b4 {[%emt 0:00:25]} a5 {[%emt 0:00:02]} 39. Kd3 {[%emt 0:00:35]} Rd5+ {[%emt 0:04:56]} 40. Kc3 {[%emt 0:00:33]} a4 {[%emt 0:01:32]} 41. Rxh4 {[%emt 0:31:57]} Rd1 {[%emt 0:31:36]} 42. Kc4 {[%emt 0:00:00]} Ra1 {[%emt 0:00:00]} 43. Kb5 {[%emt 0:00:00]} Rxa3 {[%emt 0:00:00]} 44. Kxb6 {[%emt 0:00:00]} Rg3 {[%emt 0:00:00]} 45. b5 {[%emt 0:00:00]} a3 {[%emt 0:00:00]} 46. f5 {[%emt 0:00:00]} exf5 {[%emt 0:00:00]} 47. Ka7 {[%emt 0:00:00]} a2 {[%emt 0:00:00]} 48. Ra4 {[%emt 0:00:00]} Rxh3 {[%emt 0:00:00]} 49. Rxa2 {[%emt 0:00:00]} Rb3 {[%emt 0:00:00]} 50. b6 {[%emt 0:00:00]} Ke7 {[%emt 0:00:00]} 51. b7 {[%emt 0:01:05]} Ke6 {[%emt 0:00:00]} 52. Ra5 {[%emt 0:04:43]} f4 {[%emt 0:00:00]} 53. b8=Q {[%emt 0:00:31]} Rxb8 {[%emt 0:00:00]} 54. Kxb8 {[%emt 0:00:02]} f3 {[%emt 0:00:00]} 55. Kc7 {[%emt 0:00:10]} f2 {[%emt 0:00:00]} 56. Ra1 {[%emt 0:00:02]} Kxe5 {[%emt 0:00:00]} 57. Rf1 {[%emt 0:00:03]} f5 {[%emt 0:00:00]} 58. Kc6 {[%emt 0:00:49]} Ke4 {[%emt 0:00:00]} 59. Rxf2 {[%emt 0:00:08]} f4 {[%emt 0:00:00]} 60. Re2+ {[%emt 0:00:27]} Kd4 {[%emt 0:00:00]} 1/2-1/2